fUSD/lending_fUSD_20240327
["ID","MTS","AMOUNT","RATE_DAILY","PERIOD"]
[320788386,1711555908633,-249.98765046,0.000369,11]
[320788387,1711555908642,-211.994569,0.00046301,14]
[320788388,1711555908652,-151.0,0.0005419,120]
[320788389,1711555908662,-71.33252379,0.00054246,120]
[320788390,1711555908676,-79.66747621,0.00054246,120]
[320788391,1711555908686,-500.0,0.00054246,120]
[320788392,1711555908696,-625.06,0.00054246,120]
[320788393,1711555908705,-500.0,0.00054246,120]
[320788394,1711555908715,-500.0,0.0005452,120]
[320788395,1711555908725,-500.0,0.0005452,120]
[320788396,1711555908735,-500.0,0.00054794,120]
[320788397,1711555908745,-571.54,0.00054794,120]
[320788398,1711555908757,-401.803912,0.00055068,120]
[320788399,1711555908766,-602.27,0.00055068,120]
[320788400,1711555908775,-123635.97197213,0.0005633,30]
[320788401,1711555908787,-1075.31373716,0.0005633,30]
[320788402,1711555908813,-185.73336312,0.0002353,2]
[320788403,1711555908823,-500.0,0.00054246,120]
[320788404,1711555908832,-5190.71994451,0.0005633,30]
[320788405,1711555908844,-1659.13390012,0.0005633,30]
[320788406,1711555908866,-185.73336312,0.0002353,2]
[320788407,1711555908876,-3638.3978908,0.0005633,30]
[320788408,1711555908904,-185.73336312,0.00024981,2]
[320788409,1711555908914,-1579.04491806,0.0005633,30]
[320788410,1711555908926,-166367.58374795,0.0005633,30]
[320788411,1711555908937,-3965.96099994,0.0005633,30]
[320788412,1711555908971,-37930.77727624,0.0005633,30]
[320788413,1711555908982,-218.55791324,0.00056333,30]
[320788414,1711555908991,-299.31025435,0.00056333,30]
[320788415,1711555909003,-2757.03851198,0.00056334,30]
[320788416,1711555909014,-5102.52786094,0.00056335,30]
[320788417,1711555909024,-8863.76174092,0.00056336,30]
[320788418,1711555909034,-299.31025435,0.00056338,30]
[320788419,1711555909044,-286.01237163,0.00056338,30]
[320788420,1711555909053,-152.7276918,0.00056339,120]
[320788421,1711555909063,-983.51060961,0.00056341,30]
[320788422,1711555909072,-582962.33478153,0.00056344,30]
[320788423,1711555909082,-154.5993147,0.00056346,120]
[320788424,1711555909092,-1635.56456507,0.0005635,30]
[320788425,1711555909102,-286.01237163,0.00056351,30]
[320788426,1711555909111,-414.18939629,0.00056351,30]
[320788427,1711555909122,-5102.52786094,0.00056351,30]
[320788428,1711555909133,-1635.56456507,0.00056352,30]
[320788429,1711555909141,-152.7276918,0.00056353,120]
[320788430,1711555909151,-154.58936673,0.00056353,120]
[320788431,1711555909161,-8863.76174092,0.00056357,30]
[320788432,1711555909172,-983.51060961,0.00056358,30]
[320788433,1711555909182,-17315.6178872,0.00056359,30]
[320788434,1711555909191,-133432.05765246,0.00056359,30]
[320788435,1711555909285,-185.73336312,0.0002499,2]
[320788436,1711555909295,-132.26663688,0.0002499,2]
[320788437,1711555909562,-53.46672624,0.0002499,2]
[320788438,1711555909573,-185.73336312,0.0002547,2]
[320788439,1711555909583,-185.73336312,0.0002547,2]
[320788440,1711555909593,-28684.24302534,0.00036538,2]
[320788441,1711555909603,-500.0,0.00054246,120]
[320788442,1711555909613,-350.65945565,0.00054246,120]
[320788443,1711555909622,-30889.79734151,0.00056359,30]
[320788444,1711555910243,-155.75839515,0.00021883,2]
[320788445,1711555910255,-185.73336312,0.0002547,2]
[320788446,1711555910265,-185.73336312,0.0002547,2]
[320788447,1711555910275,-147.56917434,0.0002547,2]
[320788448,1711555910297,-38.16418878,0.0002547,2]
[320788449,1711555910308,-185.73336312,0.0002554,2]
[320788450,1711555910319,-185.73336312,0.0002554,2]
[320788451,1711555910330,-185.73336312,0.00026052,2]
[320788452,1711555910341,-155.72968109,0.00026052,2]
[320788453,1711555910355,-30.00368203,0.00026052,2]
[320788454,1711555910365,-185.73336312,0.00026062,2]
[320788455,1711555910375,-185.73336312,0.0002734,2]
[320788456,1711555910385,-185.73336312,0.0002744,2]
[320788457,1711555910395,-185.73336312,0.0002899,2]
[320788458,1711555910406,-330.43824467,0.000329,2]
[320788459,1711555910416,-151.0,0.00049315,120]
[320788460,1711555910426,-151.0,0.00049315,120]
[320788461,1711555910436,-151.0,0.00049315,120]
[320788462,1711555910446,-500.0,0.00054246,120]
[320788463,1711555910457,-500.0,0.0005452,120]
[320788464,1711555910467,-500.0,0.0005452,120]
[320788465,1711555910477,-500.0,0.00054794,120]
[320788466,1711555910487,-3954.99757573,0.00056359,30]
[320788467,1711555910499,-9638.92798,0.00056359,30]
[320788468,1711555910515,-24628.5690514,0.00056359,30]
[320788469,1711555910811,-185.73336312,0.00029156,2]
[320788470,1711555910821,-1894.93669051,0.00056359,30]
[320788471,1711555910832,-298.31787138,0.00056359,30]
[320788472,1711555910847,-5156.9299942,0.00056359,30]
[320788473,1711555910875,-185.73336312,0.00029156,2]
[320788474,1711555910885,-500.0,0.00055068,120]
[320788475,1711555910893,-25203.39837966,0.00056359,30]
[320788476,1711555910905,-38804.54410894,0.00056359,30]
[320788477,1711555910921,-1122.59869064,0.00054246,120]
[320788478,1711555916122,291.16719594,0.00019854,2]
[320788479,1711555917416,409.59103512,0.00019258,2]
[320788480,1711555921317,878.65863623,0.00019854,2]
[320788481,1711556027483,152.05604362,0.00039591,30]
[320788482,1711556033176,385.53735154,0.00019854,2]
[320788483,1711556034488,295.41221015,0.00019854,2]
[320788484,1711556038052,1903.83659298,0.00019854,2]
[320788485,1711556038762,3210.99710035,0.00019854,2]
[320788486,1711556039325,406.48055709,0.00019258,2]
[320788487,1711556040229,155.0,0.00019613,2]
[320788488,1711556041175,746.60142935,0.00019613,2]
[320788489,1711556052318,862.28398827,0.00019854,2]
[320788491,1711556054910,22630.13103772,0.00019854,2]
[320788492,1711556056113,317.77309168,0.00019854,2]
[320788493,1711556056918,334.82955143,0.00019854,2]
[320788494,1711556060097,19490.30468401,0.00019613,2]
[320788495,1711556061705,291.32964853,0.00019854,2]
[320788496,1711556082365,19080.78232504,0.00019613,2]
[320788497,1711556321756,454.52,0.00019603,3]
[320788499,1711556459076,300.95,0.00024905,120]
[320788500,1711556459431,300.95,0.00027395,120]
[320788501,1711556459860,300.95,0.00029886,120]
[320788506,1711556570686,155.84,0.00017117,2]
[320788507,1711556628391,152.05604362,0.00039844,30]
[320788509,1711556808141,-467.19016124,0.00018311,2]
[320788510,1711556929703,2202.5232927,0.0001802,2]
[320788511,1711556934143,3647.86184773,0.0001802,2]
[320788512,1711556937814,784.19077975,0.0001802,2]
[320788513,1711556939974,1054.59333877,0.0001802,2]
[320788514,1711556943117,437.14473375,0.0001802,2]
[320788515,1711556943646,484.50959772,0.0001802,2]
[320788516,1711556948101,155.0,0.0001802,2]
[320788517,1711556953189,294.11055924,0.0001802,2]
[320788518,1711556958685,4178.44840539,0.0001802,2]
[320788519,1711556969202,166.40609062,0.0001802,2]
[320788520,1711556971842,265.90282322,0.0001802,2]
[320788521,1711556975757,3671.19583472,0.00017921,2]
[320788522,1711556980073,10730.7273,0.00018015,2]
[320788523,1711556984199,1237.33265613,0.0001802,2]
[320788524,1711556990574,13156.07807,0.0001793,2]
[320788525,1711556993103,159.89600852,0.00017989,2]
[320788526,1711557002593,150.0,0.0001802,2]
[320788533,1711557020888,272.75,0.00017979,2]
[320788564,1711557032110,-7798.69314125,0.00018021,2]
[320788566,1711557032122,-3230.63302066,0.00018021,2]
[320788567,1711557032143,-1528.03631163,0.00018021,2]
[320788568,1711557032202,-200.68511948,0.00018021,2]
[320788569,1711557032212,-250.0,0.00018035,2]
[320788570,1711557032222,-250.0,0.00018087,2]
[320788571,1711557032231,-155.0,0.00018088,2]
[320788572,1711557032241,-157.59,0.00018089,2]
[320788573,1711557032251,-1852.42,0.00018108,2]
[320788574,1711557032260,-1177.0,0.00018114,2]
[320788575,1711557032270,-159.89600848,0.00018156,2]
[320788576,1711557032280,-19324.99035316,0.00018215,2]
[320788577,1711557032290,-363.83,0.00018246,2]
[320788578,1711557032299,-1555.11328978,0.0001831,2]
[320788579,1711557032312,-677.88581329,0.0001831,2]
[320788580,1711557032329,-1414.86274466,0.0001831,2]
[320788581,1711557032338,-1356.89,0.00018311,2]
[320788582,1711557032348,-150.99,0.00018311,2]
[320788583,1711557032363,-516.40725534,0.00018311,2]
[320788584,1711557032401,-1536.207,0.00018311,2]
[320788585,1711557032414,-322.37574466,0.00018311,2]
[320788586,1711557032424,-159.89600848,0.00018323,2]
[320788587,1711557032434,-698.99,0.00018383,2]
[320788588,1711557032448,-3005.669,0.00018425,2]
[320788589,1711557032458,-698.99,0.00018434,2]
[320788590,1711557032471,-150.0,0.00018483,2]
[320788592,1711557032481,-698.99,0.00018484,2]
[320788594,1711557032492,-159.89600848,0.00018489,2]
[320788597,1711557032502,-698.99,0.00018534,2]
[320788598,1711557032511,-698.99,0.00018585,2]
[320788599,1711557032521,-698.99,0.00018635,2]
[320788600,1711557032531,-159.89600848,0.00018656,2]
[320788601,1711557032540,-698.99,0.00018686,2]
[320788602,1711557032551,-177.59,0.00018688,2]
[320788603,1711557032560,-698.99,0.00018736,2]
[320788604,1711557032569,-698.99,0.00018787,2]
[320788605,1711557032579,-1934.4349739,0.00018816,2]
[320788606,1711557032591,-4511.05379741,0.00018816,2]
[320788607,1711557032606,-4789.97235925,0.00018816,2]
[320788608,1711557032618,-1115.66757361,0.00018816,2]
[320788609,1711557032630,-3190.71279583,0.00018816,2]
[320788610,1711557032640,-159.89600848,0.00018823,2]
[320788611,1711557032650,-117.81941323,0.00018837,2]
[320788612,1711557032663,-581.17058677,0.00018837,2]
[320788613,1711557032673,-698.99,0.00018887,2]
[320788614,1711557032683,-698.99,0.00018938,2]
[320788615,1711557032692,-698.99,0.00018988,2]
[320788616,1711557032702,-159.89600848,0.0001899,2]
[320788617,1711557032712,-698.99,0.00019039,2]
[320788618,1711557032724,-23900.0,0.00019044,2]
[320788619,1711557032733,-698.99,0.00019089,2]
[320788620,1711557032743,-698.99,0.00019139,2]
[320788621,1711557032753,-159.89600848,0.00019157,2]
[320788622,1711557032762,-389.16719468,0.00019178,2]
[320788623,1711557032772,-698.99,0.0001919,2]
[320788624,1711557032781,-200.0,0.00019198,2]
[320788625,1711557032791,-1768.9,0.00019206,2]
[320788626,1711557032800,-698.99,0.0001924,2]
[320788627,1711557032810,-500.0,0.00019256,2]
[320788628,1711557032819,-698.99,0.00019291,2]
[320788629,1711557032829,-698.99,0.00019341,2]
[320788630,1711557032839,-166.40609062,0.00019499,2]
[320788631,1711557032849,-806.3784881,0.000195,2]
[320788632,1711557032860,-438.28883147,0.000195,2]
[320788633,1711557032870,-223.0269415,0.000195,2]
[320788634,1711557032880,-785.90967558,0.000195,2]
[320788635,1711557032890,-164.13190928,0.000195,2]
[320788636,1711557032900,-342.03468414,0.000195,2]
[320788637,1711557032911,-3124.11419268,0.000195,2]
[320788638,1711557032922,-178.08198138,0.00019501,2]
[320788639,1711557032932,-5811.9444828,0.00019502,2]
[320788640,1711557032943,-85938.8532,0.00019503,2]
[320788641,1711557032952,-304.60516842,0.0001951,2]
[320788642,1711557032964,-1236.19868966,0.0001951,2]
[320788643,1711557032974,-998.37778114,0.0001951,2]
[320788644,1711557032984,-1313.76015949,0.00019511,2]
[320788645,1711557032995,-556.8282,0.00019512,2]
[320788646,1711557033004,-936.0349,0.00019512,2]
[320788647,1711557033016,-6848.917,0.00019512,2]
[320788648,1711557033026,-1111.1573,0.00019513,2]
[320788649,1711557033037,-15504.84419683,0.00019513,2]
[320788650,1711557033047,-178.3323065,0.00019513,2]
[320788651,1711557033062,-301.13234783,0.00019513,2]
[320788652,1711557033084,-207.73201418,0.00019513,2]
[320788653,1711557033107,-489.5,0.00019517,2]
[320788654,1711557033128,-4553.9112608,0.00019593,2]
[320788655,1711557033149,-1280.6,0.00019603,2]
[320788656,1711557033172,-150.99,0.00019603,2]
[320788657,1711557033195,-578.12713204,0.00019611,2]
[320788658,1711557033214,-2201.66353845,0.00019611,2]
[320788659,1711557033227,-309.12001729,0.00019611,2]
[320788660,1711557033239,-532.02037147,0.00019611,2]
[320788661,1711557033250,-379.87467864,0.00019611,2]
[320788662,1711557033260,-777.13212766,0.00019611,2]
[320788663,1711557033271,-314.04211085,0.00019611,2]
[320788664,1711557033280,-185.04466804,0.00019611,2]
[320788665,1711557033290,-275.45080105,0.00019611,2]
[320788666,1711557033300,-249.6556364,0.00019611,2]
[320788667,1711557033310,-155.0,0.00019611,2]
[320788668,1711557033321,-203.42479998,0.00019611,2]
[320788669,1711557033331,-180.38765646,0.00019611,2]
[320788670,1711557033353,-155.0,0.00019611,2]
[320788671,1711557033364,-156.91842754,0.00019611,2]
[320788672,1711557033378,-155.0,0.00019611,2]
[320788673,1711557033388,-659.37477421,0.00019611,2]
[320788674,1711557033398,-172.60528352,0.00019611,2]
[320788675,1711557033408,-2337.89532994,0.00019611,2]
[320788676,1711557033418,-155.31653082,0.00019611,2]
[320788677,1711557033428,-155.62028313,0.00019611,2]
[320788678,1711557033438,-294.41620853,0.00019611,2]
[320788679,1711557033450,-209.46051321,0.00019611,2]
[320788680,1711557033460,-156.29239269,0.00019611,2]
[320788681,1711557033473,-180.00963658,0.00019611,2]
[320788682,1711557033483,-160.93111356,0.00019611,2]
[320788683,1711557033494,-156.25107431,0.00019611,2]
[320788684,1711557033504,-155.1637337,0.00019611,2]
[320788685,1711557033514,-297.80810405,0.00019611,2]
[320788686,1711557033524,-163.09843604,0.00019611,2]
[320788687,1711557033534,-150.0,0.00019612,2]
[320788688,1711557033544,-499.99,0.00019612,2]
[320788689,1711557033554,-192839.52949798,0.00019613,2]
[320788736,1711557038181,-268.3510477,0.00019603,2]
[320788738,1711557038191,-119613.63027221,0.00019613,2]
[320788743,1711557038233,-883.4237229,0.00019613,2]
[320788746,1711557038244,-10510.64443999,0.00019613,2]
[320788748,1711557038256,-3548.70582909,0.00019613,2]
[320788751,1711557038281,-9468.09438124,0.00019613,2]
[320788754,1711557038294,-2795.42999907,0.00019613,2]
[320788756,1711557038306,-299.434517,0.00019613,2]
[320788758,1711557038319,-10498.85412,0.00019613,2]
[320788760,1711557038331,-2960.30940794,0.00019613,2]
[320788763,1711557038346,-8001.13426834,0.00019613,2]
[320788765,1711557038378,-24030.26229686,0.00019613,2]
[320788766,1711557038402,-857.57699346,0.00019613,2]
[320788767,1711557038419,-687.64278443,0.00019613,2]
[320788768,1711557038432,-981.97731131,0.00019613,2]
[320788769,1711557038444,-446719.47217613,0.00019613,2]
[320788770,1711557038454,-313.13,0.00019613,2]
[320788771,1711557038464,-500.0,0.00019692,2]
[320788772,1711557038476,-300.95,0.00019924,2]
[320788773,1711557038486,-154.77920992,0.00019975,2]
[320788774,1711557038496,-195.30838005,0.00019975,2]
[320788775,1711557038507,-196.05670908,0.00019975,2]
[320788776,1711557038517,-362.88436561,0.00019975,2]
[320788777,1711557038527,-591.0994759,0.0002,2]
[320788779,1711557038536,-155.0,0.0002,2]
[320788781,1711557038548,-1249.19045626,0.0002,2]
[320788783,1711557038558,-2342.08393912,0.0002,2]
[320788785,1711557038569,-107080.03,0.0002,2]
[320788787,1711557038578,-180.0,0.00020332,2]
[320788789,1711557038588,-735.07,0.00021096,2]
[320788791,1711557038598,-154.77920963,0.00021502,2]
[320788793,1711557038607,-3040.8524243,0.0002157,2]
[320788795,1711557038618,-4592.36113509,0.00021571,2]
[320788797,1711557038627,-4613.56161313,0.00021681,2]
[320788800,1711557038639,-243.92700944,0.00021682,2]
[320788802,1711557038649,-156.22718414,0.00021682,2]
[320788804,1711557038659,-323.15774917,0.00021682,2]
[320788806,1711557038668,-156.0017333,0.00021682,2]
[320788808,1711557038677,-235.97176893,0.00021682,2]
[320788809,1711557038686,-165.37702993,0.00021682,2]
[320788811,1711557038696,-4380.70789093,0.00021682,2]
[320788813,1711557038706,-406.77867836,0.00021682,2]
[320788816,1711557038715,-6956.44550718,0.00021682,2]
[320788818,1711557038725,-278.15858616,0.00021682,2]
[320788819,1711557038734,-1594.3657953,0.00021792,2]
[320788822,1711557038745,-10000.0,0.00021918,2]
[320788824,1711557038755,-250.0,0.00021918,2]
[320788826,1711557038764,-1768.9,0.00021946,2]
[320788828,1711557038774,-644.17906747,0.00022,2]
[320788830,1711557038785,-300.95,0.00022414,2]
[320788831,1711557038797,-154.77920963,0.00023028,2]
[320788833,1711557038807,-10399.80935464,0.000235,2]
[320788835,1711557038817,-15504.8441968,0.00023599,2]
[320788838,1711557038827,-223.98505408,0.00024,2]
[320788839,1711557038838,-60.12717434,0.00024555,2]
[320788842,1711557038851,-94.65203529,0.00024555,2]
[320788844,1711557038863,-1768.9,0.00024686,2]
[320788846,1711557038872,-362.88436558,0.00024781,2]
[320788848,1711557038882,-363.83,0.00025545,2]
[320788850,1711557038891,-154.77920963,0.00026082,2]
[320788852,1711557038900,-250.0,0.00027,3]
[320788854,1711557038910,-155.37,0.00027397,2]
[320788856,1711557038919,-154.77920963,0.00027609,2]
[320788858,1711557038928,-6932.71126358,0.00027684,2]
[320788860,1711557038940,-6988.4,0.00027684,2]
[320788863,1711557038956,-524.82500001,0.00027684,2]
[320788865,1711557038968,-694.67468814,0.00027684,2]
[320788868,1711557038984,-364.23324507,0.00027684,2]
[320788870,1711557038993,-178.33230646,0.00028445,4]
[320788872,1711557039002,-301.13234779,0.0002891,2]
[320788874,1711557039012,-300.0,0.00029,3]
[320788876,1711557039021,-154.77920963,0.00029135,2]
[320788878,1711557039031,-362.88436558,0.00029588,2]
[320788880,1711557039041,-2633.36473626,0.0002999,2]
[320788882,1711557039051,-224.25571139,0.0003,4]
[320788884,1711557039061,-154.77920963,0.00030662,2]
[320788886,1711557039070,-1000.0,0.00030835,2]
[320788888,1711557039079,-350.0,0.00031,3]
[320788890,1711557039088,-362.42414368,0.00031174,4]
[320788892,1711557039098,-443.46815717,0.0003177,2]
[320788894,1711557039111,-919.6919,0.0003177,2]
[320788896,1711557039123,-14141.68413963,0.0003177,2]
[320788898,1711557039133,-154.77920963,0.00032189,2]
[320788900,1711557039142,-735.07,0.00032329,2]
[320788902,1711557039152,-386.85,0.00032548,15]
[320788904,1711557039162,-1047.96031032,0.00032818,4]
[320788906,1711557039171,-296.53,0.00032877,5]
[320788908,1711557039180,-439.85364439,0.00032882,7]
[320788910,1711557039190,-400.0,0.00033,3]
[320788912,1711557039200,-384.77618503,0.00033266,5]
[320789038,1711557040147,-10553.5448895,0.00033266,5]
[320789039,1711557040157,-3910.35,0.00033502,2]
[320789040,1711557040166,-154.77920963,0.00033715,2]
[320789041,1711557040176,-362.88436558,0.00034394,2]
[320789042,1711557040185,-1000.0,0.0003469,2]
[320789043,1711557040194,-450.0,0.00035,3]
[320789044,1711557040204,-1278.37267451,0.00035,4]
[320789046,1711557040214,-154.77920963,0.00035242,2]
[320789047,1711557040223,-386.85,0.00035288,15]
[320789049,1711557040232,-10938.32107449,0.00035488,8]
[320789051,1711557040242,-15504.8441968,0.00035855,2]
[320789052,1711557040251,-6991.78306079,0.00036536,4]
[320789053,1711557040264,-873.59999982,0.00036536,4]
[320789054,1711557040276,-1165.40353262,0.00036536,4]
[320789055,1711557040285,-450.43164634,0.00036658,4]
[320789056,1711557040295,-154.77920963,0.00036769,2]
[320789057,1711557040305,-500.0,0.00037,3]
[320789058,1711557040315,-163.36064476,0.00037047,4]
[320789059,1711557040324,-696.01391568,0.00037048,4]
[320789060,1711557040344,-484.23808323,0.00037048,4]
[320789061,1711557040356,-99.93403459,0.00037048,4]
[320789062,1711557040368,-178.33230646,0.00037378,8]
[320789063,1711557040377,-221.73365895,0.0003771,11]
[320789064,1711557040389,-534.0,0.0003771,11]
[320789065,1711557040405,-333.81892786,0.0003771,11]
[320789067,1711557040519,-9848.76848768,0.0003771,11]
[320789068,1711557040528,-867.15561493,0.0003789,10]
[320789069,1711557040538,-6235.64300022,0.00038,10]
[320789070,1711557040548,-386.85,0.00038027,15]
[320789071,1711557040557,-400.0,0.00038107,120]
[320789072,1711557040567,-154.77920963,0.00038295,2]
[320789073,1711557040578,-301.13234779,0.00038308,2]
[320789074,1711557040588,-1000.0,0.00038544,2]
[320789075,1711557040597,-374.40841634,0.00038841,11]
[320789076,1711557040607,-1000.0,0.00038904,120]
[320789077,1711557040619,-343.1558288,0.00038969,120]
[320789078,1711557040628,-90743.44113764,0.00039,30]
[320789079,1711557040638,-550.0,0.00039,3]
[320789080,1711557040647,-362.88436558,0.000392,2]
[320789081,1711557040656,-3233.46775379,0.000392,2]
[320789082,1711557040667,-139102.96456921,0.000393,30]
[320789083,1711557040679,-752.74454241,0.000393,30]
[320789088,1711557043038,-855.62630079,0.000393,30]
[320789089,1711557043053,-352.72799642,0.000393,30]
[320789090,1711557043121,-591.46271783,0.000393,30]
[320789091,1711557043133,-68900.0,0.000393,30]
[320789092,1711557043145,-3485.958,0.000393,30]
[320789093,1711557044630,-837.93466786,0.00033265,4]
[320789094,1711557044642,-472.7927102,0.00033265,4]
[320789095,1711557044695,-3590.43057475,0.00033265,4]
[320789096,1711557044704,-415.78026925,0.000393,30]
[320789097,1711557044715,-283056.79429563,0.000393,30]
[320789098,1711557044737,-6603.55066496,0.000393,30]
[320789099,1711557044811,-554.14253244,0.000393,30]
[320789100,1711557044822,-908.38874559,0.000393,30]
[320789101,1711557044890,-3078.56779238,0.000393,30]
[320789102,1711557044902,-8826.00652005,0.000393,30]
[320789103,1711557044913,-1937.50499,0.000393,30]
[320789104,1711557044924,-1175.26064,0.000393,30]
[320789105,1711557044936,-500.0,0.000393,30]
[320789106,1711557044962,-1435.84590072,0.000393,30]
[320789107,1711557044975,-702.06927425,0.000393,30]
[320789108,1711557044986,-902.27158921,0.000393,30]
[320789109,1711557044997,-867.32081763,0.000393,30]
[320789110,1711557045008,-519.1325,0.000393,30]
[320789111,1711557045024,-8720.20246593,0.000393,30]
[320789112,1711557045036,-121557.24247611,0.000393,30]
[320789113,1711557045059,-2809.75967999,0.000393,30]
[320789114,1711557045070,-2738.87062233,0.000393,30]
[320789115,1711557045109,-7179.17187443,0.000393,30]
[320789116,1711557045122,-25171.39609437,0.000393,30]
[320789264,1711557046566,-5806.59673469,0.000393,30]
[320789266,1711557046640,-295.47578606,0.000393,30]
[320789267,1711557046763,-413.05150712,0.000393,30]
[320789268,1711557046775,-874.35004611,0.000393,30]
[320789269,1711557046831,-2479.43855427,0.000393,30]
[320789270,1711557046848,-525.27565981,0.000393,30]
[320789271,1711557046899,-14582.43468,0.000393,30]
[320789272,1711557046911,-35885.226265,0.000393,30]
[320789273,1711557046923,-1716.740025,0.000393,30]
[320789274,1711557046965,-5780.7424,0.000393,30]
[320789275,1711557046976,-2272.87860025,0.000393,30]
[320789277,1711557079976,1328.0,0.0003984,120]
[320789281,1711557960530,-155.0,0.00018843,2]
[320789282,1711557960554,-300.0,0.00018844,2]
[320789283,1711557960577,-591.0994759,0.0002,2]
[320789284,1711557960601,-155.0,0.0002,2]
[320789285,1711557960624,-1249.19045626,0.0002,2]
[320789289,1711558028632,-2342.08393912,0.00026996,2]
[320789290,1711558028658,-250.0,0.00027,3]
[320789291,1711558028683,-500.0,0.000274,7]
[320789292,1711558028707,-500.0,0.000274,7]
[320789293,1711558028732,-300.0,0.00029,3]
[320789294,1711558028759,-2633.36473626,0.0002999,2]
[320789295,1711558028783,-350.0,0.00031,3]
[320789296,1711558028806,-400.0,0.00033,3]
[320789297,1711558028835,-612.3472,0.00033044,2]
[320789298,1711558028858,-561.1982,0.00033049,2]
[320789299,1711558028881,-163.55868513,0.00033164,2]
[320789300,1711558028904,-225.0626651,0.00033266,4]
[320789301,1711558028927,-178.69072463,0.00033266,2]
[320789302,1711558028954,-163.55868509,0.00034673,2]
[320789303,1711558028978,-499.99,0.00034673,2]
[320789304,1711558029000,-450.0,0.00035,3]
[320789305,1711558029025,-603.84,0.0003553,2]
[320789306,1711558029052,-163.55868509,0.00036182,2]
[320789307,1711558029075,-250.0,0.00036439,2]
[320789308,1711558029099,-13852.74647958,0.00036519,2]
[320789309,1711558043662,-155.0,0.00036438,4]
[320789310,1711558043685,-530.08303492,0.00036518,4]
[320789311,1711558043711,-2314.91696508,0.00036519,2]
[320789312,1711558159128,-300.0,0.00018744,2]
[320789323,1711558232255,-794.18355687,0.00035539,2]
[320789324,1711558232265,-573.64,0.0003554,2]
[320789325,1711558232275,-447.01789247,0.00036419,2]
[320789326,1711558232312,-279.36114389,0.00036419,2]
[320789327,1711558232323,-522.13920169,0.00036419,2]
[320789328,1711558232379,-1757.15076195,0.00036419,2]
[320789329,1711558232389,-206.3682,0.00036419,2]
[320789330,1711558232400,-163.55868509,0.00036419,2]
[320789331,1711558232410,-7732.33655534,0.00036519,2]
[320789332,1711558232420,-2957.62674015,0.00036519,4]
[320789333,1711558232431,-500.0,0.00037,3]
[320789334,1711558232440,-151.79,0.00037098,2]
[320789335,1711558232449,-628.29289489,0.00037186,15]
[320789336,1711558232461,-26.77710511,0.00037186,15]
[320789337,1711558232470,-500.0,0.00037232,2]
[320789338,1711558232479,-285.58041462,0.00037262,2]
[320789339,1711558232503,-204.45958538,0.00037262,2]
[320789340,1711558232512,-240.0,0.00037304,120]
[320789341,1711558232522,-1000.0,0.00037439,2]
[320789342,1711558232531,-250.0,0.00037448,2]
[320789343,1711558232541,-200.0,0.0003745,2]
[320789344,1711558232550,-295.82,0.00037457,2]
[320789345,1711558232560,-240.12,0.00037482,2]
[320789346,1711558232570,-250.0,0.00037507,110]
[320789347,1711558232580,-320.0,0.00037507,120]
[320789348,1711558232589,-3805.84,0.00037697,2]
[320789349,1711558232598,-1000.0,0.00037736,2]
[320789350,1711558232607,-1557.74,0.00037739,2]
[320789351,1711558232616,-22935.52358979,0.00037784,2]
[320789352,1711558232625,-573.64,0.00037803,2]
[320789353,1711558232635,-351.0,0.00038356,2]
[320789354,1711558232644,-500.0,0.00038411,2]
[320789355,1711558232653,-200.0,0.000385,14]
[320789356,1711558232663,-683.93787831,0.00038513,4]
[320789357,1711558232672,-500.0,0.000386,14]
[320789358,1711558232681,-2469.4913,0.00038695,2]
[320789359,1711558232691,-208.7271,0.00038695,2]
[320789360,1711558232700,-800.0,0.000387,14]
[320789361,1711558232709,-170.65073738,0.00038704,4]
[320789362,1711558232718,-1450.58397,0.00038762,2]
[320789363,1711558232727,-1100.0,0.000388,14]
[320789364,1711558232737,-1300.0,0.000389,14]